[Event "*** Titled Tuesday Blitz"]
[Site "Chess.com"]
[Date "2020.04.07"]
[Round "1"]
[White "Sanyura"]
[Black "mbojan"]
[Result "1-0"]
[WhiteElo "2385"]
[BlackElo "2703"]
[TimeControl "180+1"]
[EndTime "13:08:02 PDT"]
[Termination "Sanyura won by checkmate"]

1. Nf3 {[%clk 0:02:59.8]} 1... g6 {[%clk 0:02:59.3]} 2. d3 {[%clk 0:02:59.7]}
2... Bg7 {[%clk 0:02:58.6]} 3. g3 {[%clk 0:03:00.6]} 3... d6 {[%clk 0:02:58.6]}
4. Bg2 {[%clk 0:03:01.2]} 4... Nf6 {[%clk 0:02:59.2]} 5. O-O {[%clk 0:03:02.1]}
5... O-O {[%clk 0:03:00.1]} 6. e4 {[%clk 0:03:02.7]} 6... Nc6 {[%clk 0:02:58.1]}
7. Nc3 {[%clk 0:03:02.3]} 7... d5 {[%clk 0:02:58.5]} 8. exd5 {[%clk 0:03:02.1]}
8... Nxd5 {[%clk 0:02:59.4]} 9. Ne4 {[%clk 0:03:01.6]} 9... b6 {[%clk
0:02:55.9]} 10. c3 {[%clk 0:02:59.9]} 10... Bb7 {[%clk 0:02:49.9]} 11. d4 {[%clk
0:02:59.7]} 11... e5 {[%clk 0:02:45.6]} 12. dxe5 {[%clk 0:02:53]} 12... Nxe5
{[%clk 0:02:42.9]} 13. Nxe5 {[%clk 0:02:52.8]} 13... Bxe5 {[%clk 0:02:43.8]} 14.
Bg5 {[%clk 0:02:48]} 14... f6 {[%clk 0:02:31]} 15. Bh6 {[%clk 0:02:47.9]} 15...
Rf7 {[%clk 0:02:23.4]} 16. Qb3 {[%clk 0:02:43.2]} 16... c6 {[%clk 0:02:09.8]}
17. Rad1 {[%clk 0:02:40.7]} 17... Qe8 {[%clk 0:02:07.6]} 18. c4 {[%clk
0:02:41.1]} 18... Ne7 {[%clk 0:01:50.5]} 19. f4 {[%clk 0:02:38.6]} 19... Bc7
{[%clk 0:01:47.4]} 20. c5 {[%clk 0:02:38.3]} 20... Nd5 {[%clk 0:01:46.2]} 21.
Rfe1 {[%clk 0:02:34.8]} 21... Qd7 {[%clk 0:01:39.4]} 22. cxb6 {[%clk 0:01:40.5]}
22... axb6 {[%clk 0:01:40.3]} 23. Nc5 {[%clk 0:01:37.8]} 23... bxc5 {[%clk
0:01:24.7]} 24. Qxb7 {[%clk 0:01:35.4]} 24... Rd8 {[%clk 0:01:24.8]} 25. Bxd5
{[%clk 0:01:24.6]} 25... cxd5 {[%clk 0:01:25.7]} 26. Rxd5 {[%clk 0:01:24.4]}
26... Bd6 {[%clk 0:00:55.2]} 27. Qxd7 {[%clk 0:00:56.3]} 27... Rfxd7 {[%clk
0:00:56.1]} 28. Red1 {[%clk 0:00:56.3]} 28... Kf7 {[%clk 0:00:56.1]} 29. f5
{[%clk 0:00:41.6]} 29... g5 {[%clk 0:00:54.5]} 30. h4 {[%clk 0:00:41.5]} 30...
c4 {[%clk 0:00:37.5]} 31. Kg2 {[%clk 0:00:40.5]} 31... gxh4 {[%clk 0:00:29]} 32.
Bf4 {[%clk 0:00:38.2]} 32... Ke7 {[%clk 0:00:28.2]} 33. Rxd6 {[%clk 0:00:17.6]}
33... Rxd6 {[%clk 0:00:29.1]} 34. Rxd6 {[%clk 0:00:17.7]} 34... Rxd6 {[%clk
0:00:30]} 35. Bxd6+ {[%clk 0:00:18.1]} 35... Kxd6 {[%clk 0:00:30.9]} 36. g4
{[%clk 0:00:15]} 36... Ke5 {[%clk 0:00:18.3]} 37. Kh3 {[%clk 0:00:15.2]} 37...
Ke4 {[%clk 0:00:18.9]} 38. Kxh4 {[%clk 0:00:15.4]} 38... Kd3 {[%clk 0:00:16.3]}
39. g5 {[%clk 0:00:15.5]} 39... fxg5+ {[%clk 0:00:17.2]} 40. Kxg5 {[%clk
0:00:15.4]} 40... Kc2 {[%clk 0:00:18.1]} 41. f6 {[%clk 0:00:15.9]} 41... Kxb2
{[%clk 0:00:18.8]} 42. f7 {[%clk 0:00:16.4]} 42... Kxa2 {[%clk 0:00:18.2]} 43.
f8=Q {[%clk 0:00:16.5]} 43... c3 {[%clk 0:00:19.1]} 44. Qf2+ {[%clk 0:00:15.4]}
44... Kb3 {[%clk 0:00:19.5]} 45. Qb6+ {[%clk 0:00:15.5]} 45... Ka2 {[%clk
0:00:19.6]} 46. Qa5+ {[%clk 0:00:15.8]} 46... Kb3 {[%clk 0:00:19.9]} 47. Qb5+
{[%clk 0:00:16.3]} 47... Ka3 {[%clk 0:00:20.4]} 48. Qc4 {[%clk 0:00:15.8]} 48...
Kb2 {[%clk 0:00:20.6]} 49. Qb4+ {[%clk 0:00:16.3]} 49... Kc2 {[%clk 0:00:21]}
50. Kf4 {[%clk 0:00:16.8]} 50... Kd3 {[%clk 0:00:21.9]} 51. Qd6+ {[%clk
0:00:16.5]} 51... Kc4 {[%clk 0:00:22.1]} 52. Qc6+ {[%clk 0:00:16.7]} 52... Kd3
{[%clk 0:00:22.3]} 53. Qd5+ {[%clk 0:00:16.9]} 53... Ke2 {[%clk 0:00:22.4]} 54.
Qe4+ {[%clk 0:00:17.1]} 54... Kd2 {[%clk 0:00:23.1]} 55. Qd4+ {[%clk 0:00:17.2]}
55... Kc2 {[%clk 0:00:22.1]} 56. Ke3 {[%clk 0:00:17.7]} 56... Kb3 {[%clk
0:00:22.8]} 57. Qb6+ {[%clk 0:00:17.6]} 57... Ka2 {[%clk 0:00:22.7]} 58. Qa5+
{[%clk 0:00:17.7]} 58... Kb2 {[%clk 0:00:22.4]} 59. Qb4+ {[%clk 0:00:17.9]}
59... Kc2 {[%clk 0:00:22.5]} 60. Kd4 {[%clk 0:00:18.4]} 60... h5 {[%clk
0:00:22.8]} 61. Qxc3+ {[%clk 0:00:19.3]} 61... Kd1 {[%clk 0:00:22.9]} 62. Qb2
{[%clk 0:00:19.3]} 62... h4 {[%clk 0:00:23.2]} 63. Ke3 {[%clk 0:00:19.8]} 63...
h3 {[%clk 0:00:23.9]} 64. Qd2# {[%clk 0:00:20]} 1-0

[Event "*** Titled Tuesday Blitz"]
[Site "Chess.com"]
[Date "2020.04.07"]
[Round "1"]
[White "Oneofmyturns"]
[Black "Mbneu"]
[Result "1-0"]
[WhiteElo "2605"]
[BlackElo "2271"]
[TimeControl "180+1"]
[EndTime "13:08:02 PDT"]
[Termination "Oneofmyturns won by resignation"]

1. d4 {[%clk 0:03:00.9]} 1... Nf6 {[%clk 0:02:59.2]} 2. c4 {[%clk 0:03:01.3]}
2... c5 {[%clk 0:02:58.5]} 3. d5 {[%clk 0:03:01.2]} 3... e6 {[%clk 0:02:58.9]}
4. Nc3 {[%clk 0:03:00.8]} 4... exd5 {[%clk 0:02:58.8]} 5. cxd5 {[%clk
0:03:01.7]} 5... d6 {[%clk 0:02:59.4]} 6. e4 {[%clk 0:03:02.2]} 6... g6 {[%clk
0:02:59.4]} 7. f4 {[%clk 0:03:02.8]} 7... Bg7 {[%clk 0:02:58.5]} 8. Bb5+ {[%clk
0:03:03.4]} 8... Bd7 {[%clk 0:02:49.8]} 9. e5 {[%clk 0:02:58.3]} 9... Nh5 {[%clk
0:02:49.6]} 10. Nf3 {[%clk 0:02:43.8]} 10... dxe5 {[%clk 0:02:35.5]} 11. fxe5
{[%clk 0:02:42.9]} 11... O-O {[%clk 0:02:27.9]} 12. O-O {[%clk 0:02:39.6]} 12...
Re8 {[%clk 0:02:18.3]} 13. Re1 {[%clk 0:02:34.3]} 13... a6 {[%clk 0:02:13.9]}
14. Bxd7 {[%clk 0:02:11.5]} 14... Qxd7 {[%clk 0:02:12.8]} 15. Ne4 {[%clk
0:01:49.7]} 15... f5 {[%clk 0:01:26.1]} 16. Nxc5 {[%clk 0:01:42.5]} 16... Qb5
{[%clk 0:01:25.3]} 17. Ne6 {[%clk 0:01:38]} 17... Nd7 {[%clk 0:01:19.2]} 18. Qd4
{[%clk 0:01:25.7]} 18... Rac8 {[%clk 0:01:11]} 19. Nxg7 {[%clk 0:01:13.5]} 19...
Nxg7 {[%clk 0:01:09.8]} 20. Bh6 {[%clk 0:00:59.3]} 20... Rc4 {[%clk 0:01:04.1]}
21. Qd2 {[%clk 0:00:56.5]} 21... Re4 {[%clk 0:00:53.4]} 22. e6 {[%clk
0:00:37.9]} 22... Nf6 {[%clk 0:00:41.2]} 23. Rad1 {[%clk 0:00:34.6]} 23... Rd8
{[%clk 0:00:29.3]} 24. e7 {[%clk 0:00:31.8]} 24... Rxd5 {[%clk 0:00:25.7]} 25.
Qc3 {[%clk 0:00:30.1]} 25... Nge8 {[%clk 0:00:23.9]} 26. Bg5 {[%clk 0:00:26.8]}
26... Rxd1 {[%clk 0:00:20.2]} 27. Rxd1 {[%clk 0:00:27.7]} 27... Kf7 {[%clk
0:00:16.9]} 28. Bxf6 {[%clk 0:00:24.7]} 28... Nxf6 {[%clk 0:00:16.7]} 29. Ng5+
{[%clk 0:00:25.2]} 29... Kxe7 {[%clk 0:00:16]} 30. Qc7+ {[%clk 0:00:21.2]} 30...
Nd7 {[%clk 0:00:15.6]} 31. Nxe4 {[%clk 0:00:18.8]} 31... fxe4 {[%clk 0:00:16.5]}
32. Qd6+ {[%clk 0:00:14]} 32... Ke8 {[%clk 0:00:15.2]} 33. Qe6+ {[%clk
0:00:13.8]} 33... Kd8 {[%clk 0:00:14.8]} 34. Qxe4 {[%clk 0:00:13.9]} 34... Qc5+
{[%clk 0:00:14.2]} 35. Qd4 {[%clk 0:00:13.4]} 35... Qxd4+ {[%clk 0:00:13.8]} 36.
Rxd4 {[%clk 0:00:14.3]} 36... Kc7 {[%clk 0:00:14.4]} 37. Rf4 {[%clk 0:00:11.6]}
37... Ne5 {[%clk 0:00:14.3]} 38. Rh4 {[%clk 0:00:11.4]} 38... h5 {[%clk
0:00:13.4]} 39. Rd4 {[%clk 0:00:12.1]} 39... Kc6 {[%clk 0:00:13.4]} 40. b3
{[%clk 0:00:11.9]} 40... Kc5 {[%clk 0:00:13.7]} 41. Re4 {[%clk 0:00:12.4]} 41...
Kd5 {[%clk 0:00:13.6]} 42. Re2 {[%clk 0:00:12.1]} 42... g5 {[%clk 0:00:13.2]}
43. Rf2 {[%clk 0:00:11.8]} 43... Ng4 {[%clk 0:00:12.6]} 44. Rf7 {[%clk
0:00:11.5]} 44... Ke4 {[%clk 0:00:13.2]} 45. Rxb7 {[%clk 0:00:11.3]} 45... Ne3
{[%clk 0:00:13.6]} 46. Ra7 {[%clk 0:00:10.6]} 46... g4 {[%clk 0:00:14.5]} 47.
Rxa6 {[%clk 0:00:10.9]} 47... h4 {[%clk 0:00:15.4]} 48. Re6+ {[%clk 0:00:11.2]}
48... Kd3 {[%clk 0:00:15.6]} 49. Rxe3+ {[%clk 0:00:11.2]} 49... Kxe3 {[%clk
0:00:16.5]} 50. a4 {[%clk 0:00:11.4]} 50... Kd4 {[%clk 0:00:16.6]} 51. b4 {[%clk
0:00:11.8]} 51... Kc4 {[%clk 0:00:16.8]} 52. a5 {[%clk 0:00:12.7]} 52... Kb5
{[%clk 0:00:17]} 53. Kf2 {[%clk 0:00:13.2]} 53... Ka4 {[%clk 0:00:17.2]} 54. Ke3
{[%clk 0:00:13.6]} 54... Kxb4 {[%clk 0:00:17.6]} 55. Kf4 {[%clk 0:00:14.1]}
55... Kxa5 {[%clk 0:00:17.8]} 56. Kxg4 {[%clk 0:00:14.5]} 56... Kb5 {[%clk
0:00:18.7]} 57. Kxh4 {[%clk 0:00:14.7]} 57... Kc5 {[%clk 0:00:19.6]} 58. Kg5
{[%clk 0:00:15.6]} 58... Kd5 {[%clk 0:00:20]} 59. Kg6 {[%clk 0:00:16.5]} 1-0

[Event "*** Titled Tuesday Blitz"]
[Site "Chess.com"]
[Date "2020.04.07"]
[Round "1"]
[White "picturesquecheck"]
[Black "Bambi2006"]
[Result "1-0"]
[WhiteElo "2142"]
[BlackElo "2505"]
[TimeControl "180+1"]
[EndTime "13:08:03 PDT"]
[Termination "picturesquecheck won by resignation"]

1. e4 {[%clk 0:03:00.9]} 1... c5 {[%clk 0:02:59.4]} 2. Nf3 {[%clk 0:02:59]} 2...
Nc6 {[%clk 0:02:59.3]} 3. d4 {[%clk 0:02:58.8]} 3... cxd4 {[%clk 0:03:00.2]} 4.
Nxd4 {[%clk 0:02:59.7]} 4... Nf6 {[%clk 0:02:59.8]} 5. Nc3 {[%clk 0:02:59.5]}
5... e5 {[%clk 0:02:59.8]} 6. Ndb5 {[%clk 0:02:58]} 6... d6 {[%clk 0:02:59.6]}
7. Bg5 {[%clk 0:02:57.5]} 7... a6 {[%clk 0:02:59.1]} 8. Na3 {[%clk 0:02:57.8]}
8... b5 {[%clk 0:02:58.9]} 9. Nd5 {[%clk 0:02:57.6]} 9... Be7 {[%clk 0:02:59.1]}
10. Bxf6 {[%clk 0:02:57.4]} 10... Bxf6 {[%clk 0:02:59.1]} 11. c3 {[%clk
0:02:58]} 11... Bg5 {[%clk 0:02:58.7]} 12. Nc2 {[%clk 0:02:56.8]} 12... O-O
{[%clk 0:02:58.1]} 13. a4 {[%clk 0:02:56.9]} 13... bxa4 {[%clk 0:02:53.8]} 14.
Rxa4 {[%clk 0:02:57.4]} 14... a5 {[%clk 0:02:54.1]} 15. Bc4 {[%clk 0:02:56]}
15... Be6 {[%clk 0:02:51.1]} 16. O-O {[%clk 0:02:55.2]} 16... Qb8 {[%clk
0:02:47.4]} 17. b3 {[%clk 0:02:54.5]} 17... Qa7 {[%clk 0:02:47.2]} 18. Kh1
{[%clk 0:02:50.5]} 18... Qc5 {[%clk 0:02:42.8]} 19. Qd3 {[%clk 0:02:48.1]} 19...
g6 {[%clk 0:02:40.2]} 20. g3 {[%clk 0:02:22.5]} 20... Bh3 {[%clk 0:02:30.6]} 21.
b4 {[%clk 0:01:46.4]} 21... Bxf1 {[%clk 0:02:15.1]} 22. Qxf1 {[%clk 0:01:41.4]}
22... Qa7 {[%clk 0:02:07.9]} 23. Bb5 {[%clk 0:01:35.4]} 23... Qb7 {[%clk
0:01:57.4]} 24. f4 {[%clk 0:01:23]} 24... exf4 {[%clk 0:01:45.4]} 25. gxf4
{[%clk 0:01:22.6]} 25... Bh6 {[%clk 0:01:43.6]} 26. Bxc6 {[%clk 0:01:20]} 26...
Qa6 {[%clk 0:01:34.7]} 27. Qxa6 {[%clk 0:01:17.7]} 27... Rxa6 {[%clk 0:01:34.9]}
28. b5 {[%clk 0:01:18.4]} 28... Ra7 {[%clk 0:01:33.4]} 29. Nd4 {[%clk
0:01:17.9]} 29... Bg7 {[%clk 0:01:26.5]} 30. Kg2 {[%clk 0:01:17.8]} 30... f5
{[%clk 0:01:21.4]} 31. exf5 {[%clk 0:01:16.4]} 31... gxf5 {[%clk 0:01:21.5]} 32.
Ne6 {[%clk 0:01:15.2]} 32... Rc8 {[%clk 0:01:18.1]} 33. Kf3 {[%clk 0:01:12.6]}
33... Kf7 {[%clk 0:01:13.7]} 34. Ng5+ {[%clk 0:01:10.1]} 34... Kg6 {[%clk
0:01:11.8]} 35. h4 {[%clk 0:01:05.7]} 35... h6 {[%clk 0:01:11.4]} 36. Ne6 {[%clk
0:01:04]} 36... Bf6 {[%clk 0:01:07.9]} 37. Nxf6 {[%clk 0:00:57.5]} 37... Kxf6
{[%clk 0:01:08]} 38. Nd4 {[%clk 0:00:57.8]} 38... Rg8 {[%clk 0:01:02.9]} 39. b6
{[%clk 0:00:57.7]} 39... Ra6 {[%clk 0:00:56.3]} 40. b7 {[%clk 0:00:56.4]} 40...
Rb8 {[%clk 0:00:48.7]} 41. Ra2 {[%clk 0:00:53]} 41... a4 {[%clk 0:00:47.1]} 42.
Ra3 {[%clk 0:00:45]} 42... Rb6 {[%clk 0:00:46.1]} 43. Rxa4 {[%clk 0:00:42.7]}
43... Rb1 {[%clk 0:00:44.5]} 44. Ra8 {[%clk 0:00:41]} 44... R1xb7 {[%clk
0:00:43]} 45. Bxb7 {[%clk 0:00:41]} 45... Rxb7 {[%clk 0:00:43.9]} 46. Rf8+
{[%clk 0:00:40.8]} 46... Kg6 {[%clk 0:00:44]} 47. Rd8 {[%clk 0:00:40.5]} 47...
Rb3 {[%clk 0:00:43.2]} 48. Rxd6+ {[%clk 0:00:40.3]} 48... Kf7 {[%clk 0:00:42.8]}
49. Rc6 {[%clk 0:00:40.1]} 49... Rb5 {[%clk 0:00:42.1]} 50. Ke3 {[%clk
0:00:39.4]} 50... Kg7 {[%clk 0:00:40.2]} 51. Kd3 {[%clk 0:00:39.4]} 51... Rd5
{[%clk 0:00:39.7]} 52. c4 {[%clk 0:00:39.4]} 52... Rd7 {[%clk 0:00:40.1]} 53. c5
{[%clk 0:00:36.7]} 53... Rd5 {[%clk 0:00:39.5]} 54. Kc4 {[%clk 0:00:35.3]} 54...
Rd7 {[%clk 0:00:38.7]} 55. Nxf5+ {[%clk 0:00:35.5]} 55... Kf7 {[%clk 0:00:36.9]}
56. Nxh6+ {[%clk 0:00:35.1]} 56... Kg7 {[%clk 0:00:37.3]} 57. Nf5+ {[%clk
0:00:35.2]} 57... Kf7 {[%clk 0:00:37.3]} 58. Nd4 {[%clk 0:00:35.5]} 58... Re7
{[%clk 0:00:35.3]} 59. Rd6 {[%clk 0:00:34.1]} 59... Re4 {[%clk 0:00:31.7]} 60.
c6 {[%clk 0:00:32]} 60... Rxf4 {[%clk 0:00:31]} 61. c7 {[%clk 0:00:31.6]} 61...
Rf1 {[%clk 0:00:31.1]} 62. Rc6 {[%clk 0:00:31.2]} 62... Rc1+ {[%clk 0:00:30.9]}
63. Kd5 {[%clk 0:00:31.4]} 63... Rxc6 {[%clk 0:00:30.6]} 64. Nxc6 {[%clk
0:00:31.1]} 1-0

[Event "*** Titled Tuesday Blitz"]
[Site "Chess.com"]
[Date "2020.04.07"]
[Round "1"]
[White "JiangoFett"]
[Black "AndrewMaco"]
[Result "0-1"]
[WhiteElo "2302"]
[BlackElo "2632"]
[TimeControl "180+1"]
[EndTime "13:08:05 PDT"]
[Termination "AndrewMaco won on time"]

1. d4 {[%clk 0:02:59.8]} 1... Nf6 {[%clk 0:02:58.3]} 2. c4 {[%clk 0:02:59.2]}
2... e6 {[%clk 0:02:57.4]} 3. g3 {[%clk 0:02:59.1]} 3... c5 {[%clk 0:02:54.2]}
4. d5 {[%clk 0:02:56.5]} 4... exd5 {[%clk 0:02:51]} 5. cxd5 {[%clk 0:02:57.4]}
5... d6 {[%clk 0:02:51.9]} 6. Nc3 {[%clk 0:02:51.1]} 6... g6 {[%clk 0:02:51.4]}
7. Bg2 {[%clk 0:02:50.8]} 7... Bg7 {[%clk 0:02:50.6]} 8. Nf3 {[%clk 0:02:50.7]}
8... O-O {[%clk 0:02:49.9]} 9. O-O {[%clk 0:02:49.7]} 9... a6 {[%clk 0:02:50.4]}
10. a4 {[%clk 0:02:48.2]} 10... Nbd7 {[%clk 0:02:50.2]} 11. Nd2 {[%clk 0:02:36]}
11... Re8 {[%clk 0:02:49.4]} 12. Re1 {[%clk 0:02:33]} 12... Rb8 {[%clk
0:02:21.1]} 13. a5 {[%clk 0:02:25.6]} 13... b5 {[%clk 0:01:51.8]} 14. axb6
{[%clk 0:02:26]} 14... Nxb6 {[%clk 0:01:47.1]} 15. Ra2 {[%clk 0:02:10.1]} 15...
Nfd7 {[%clk 0:01:42.9]} 16. Nb3 {[%clk 0:01:51.6]} 16... Nc4 {[%clk 0:01:36.5]}
17. Qc2 {[%clk 0:01:14.5]} 17... Qb6 {[%clk 0:01:27.4]} 18. Nd2 {[%clk
0:00:56.1]} 18... Nxd2 {[%clk 0:01:21.8]} 19. Qxd2 {[%clk 0:00:56.9]} 19... c4
{[%clk 0:01:18.7]} 20. Ra4 {[%clk 0:00:46.2]} 20... Nc5 {[%clk 0:01:02.1]} 21.
Rxc4 {[%clk 0:00:44.3]} 21... Nb3 {[%clk 0:01:02.1]} 22. Qc2 {[%clk 0:00:40.7]}
22... Nxc1 {[%clk 0:00:56]} 23. Rxc1 {[%clk 0:00:38]} 23... Bd7 {[%clk 0:00:50]}
24. Na4 {[%clk 0:00:29]} 24... Qa5 {[%clk 0:00:43.4]} 25. e3 {[%clk 0:00:21.1]}
25... Bb5 {[%clk 0:00:40.1]} 26. Rf4 {[%clk 0:00:13.6]} 26... Be5 {[%clk
0:00:31.8]} 27. Rh4 {[%clk 0:00:12.3]} 27... Kg7 {[%clk 0:00:30]} 28. Nc3 {[%clk
0:00:11.2]} 28... Bd7 {[%clk 0:00:28]} 29. Re4 {[%clk 0:00:08.3]} 29... Rb4
{[%clk 0:00:18.4]} 30. Rxb4 {[%clk 0:00:07.8]} 30... Qxb4 {[%clk 0:00:19.3]} 31.
Qe2 {[%clk 0:00:06]} 31... a5 {[%clk 0:00:18.7]} 32. h4 {[%clk 0:00:05.8]} 32...
Rb8 {[%clk 0:00:18.3]} 33. h5 {[%clk 0:00:05.8]} 33... Qxb2 {[%clk 0:00:17]} 34.
Qxb2 {[%clk 0:00:05.4]} 34... Rxb2 {[%clk 0:00:17.9]} 35. hxg6 {[%clk
0:00:05.1]} 35... hxg6 {[%clk 0:00:17.7]} 36. Ne4 {[%clk 0:00:04.3]} 36... f5
{[%clk 0:00:11.9]} 37. Rc7 {[%clk 0:00:02.3]} 37... fxe4 {[%clk 0:00:10.9]} 38.
Rxd7+ {[%clk 0:00:01.7]} 38... Kf6 {[%clk 0:00:11.5]} 39. Bxe4 {[%clk
0:00:01.8]} 39... Rb4 {[%clk 0:00:10.5]} 0-1

[Event "*** Titled Tuesday Blitz"]
[Site "Chess.com"]
[Date "2020.04.07"]
[Round "1"]
[White "Sadikhov_Ulvi"]
[Black "ahappypawn"]
[Result "1-0"]
[WhiteElo "2723"]
[BlackElo "2372"]
[TimeControl "180+1"]
[EndTime "13:08:06 PDT"]
[Termination "Sadikhov_Ulvi won by resignation"]

1. e4 {[%clk 0:03:00.9]} 1... e5 {[%clk 0:02:59]} 2. Bc4 {[%clk 0:02:59.1]} 2...
Nf6 {[%clk 0:02:54.7]} 3. d3 {[%clk 0:02:58.9]} 3... c6 {[%clk 0:02:42.7]} 4.
Nf3 {[%clk 0:02:57.7]} 4... d5 {[%clk 0:02:31.6]} 5. Bb3 {[%clk 0:02:56.9]} 5...
Nbd7 {[%clk 0:02:11.1]} 6. Nc3 {[%clk 0:02:53.1]} 6... d4 {[%clk 0:02:00.8]} 7.
Ne2 {[%clk 0:02:52.2]} 7... Bd6 {[%clk 0:01:57.9]} 8. Ng3 {[%clk 0:02:48.8]}
8... Nc5 {[%clk 0:01:55.7]} 9. Bg5 {[%clk 0:02:36.1]} 9... h6 {[%clk 0:01:51.8]}
10. Bxf6 {[%clk 0:02:35.3]} 10... Qxf6 {[%clk 0:01:51.4]} 11. Nh5 {[%clk
0:02:35.2]} 11... Qg6 {[%clk 0:01:49.3]} 12. Ng3 {[%clk 0:02:31.9]} 12... Nxb3
{[%clk 0:01:42.6]} 13. axb3 {[%clk 0:02:31.7]} 13... h5 {[%clk 0:01:33.9]} 14.
Nh4 {[%clk 0:02:12.3]} 14... Qf6 {[%clk 0:01:30.2]} 15. Nf3 {[%clk 0:01:53.7]}
15... h4 {[%clk 0:01:26.8]} 16. Nf5 {[%clk 0:01:53.7]} 16... Bxf5 {[%clk
0:01:25.1]} 17. exf5 {[%clk 0:01:53.8]} 17... Qxf5 {[%clk 0:01:26]} 18. h3
{[%clk 0:01:50.3]} 18... g5 {[%clk 0:01:18.1]} 19. Qd2 {[%clk 0:01:41.1]} 19...
f6 {[%clk 0:01:15.8]} 20. O-O-O {[%clk 0:01:37.9]} 20... Kf7 {[%clk 0:01:12.1]}
21. Rde1 {[%clk 0:01:32.9]} 21... a5 {[%clk 0:01:11.3]} 22. Kb1 {[%clk
0:01:29.7]} 22... Bb4 {[%clk 0:01:07.1]} 23. c3 {[%clk 0:01:25.3]} 23... dxc3
{[%clk 0:00:56.1]} 24. bxc3 {[%clk 0:01:25.5]} 24... Be7 {[%clk 0:00:49.6]} 25.
Re4 {[%clk 0:01:24.9]} 25... Rhd8 {[%clk 0:00:45.3]} 26. Rhe1 {[%clk 0:01:22.4]}
26... a4 {[%clk 0:00:37]} 27. b4 {[%clk 0:01:20.4]} 27... Qe6 {[%clk 0:00:34]}
28. Qc2 {[%clk 0:01:15]} 28... a3 {[%clk 0:00:32.2]} 29. Nxg5+ {[%clk
0:01:08.3]} 29... fxg5 {[%clk 0:00:27.7]} 30. Rxe5 {[%clk 0:01:08.4]} 30... a2+
{[%clk 0:00:22.6]} 31. Ka1 {[%clk 0:01:08.1]} 31... Qf6 {[%clk 0:00:14.4]} 32.
d4 {[%clk 0:01:04.5]} 32... Kf8 {[%clk 0:00:06.9]} 33. Rf5 {[%clk 0:01:03.3]}
33... Rd5 {[%clk 0:00:06.4]} 34. Rxf6+ {[%clk 0:01:01.3]} 34... Bxf6 {[%clk
0:00:07.3]} 35. Qg6 {[%clk 0:00:57.6]} 35... Bg7 {[%clk 0:00:06.5]} 36. Qe4
{[%clk 0:00:37.6]} 36... Rd7 {[%clk 0:00:05.6]} 37. Re2 {[%clk 0:00:36.5]} 37...
Rf7 {[%clk 0:00:04.3]} 38. Rxa2 {[%clk 0:00:34.3]} 38... Rxa2+ {[%clk 0:00:04]}
39. Kxa2 {[%clk 0:00:35]} 39... Rxf2+ {[%clk 0:00:04.9]} 40. Kb3 {[%clk
0:00:35.6]} 40... Bf6 {[%clk 0:00:04.4]} 41. Qe6 {[%clk 0:00:33.4]} 41... Rf4
{[%clk 0:00:03.5]} 42. Qc8+ {[%clk 0:00:33]} 42... Kg7 {[%clk 0:00:04.4]} 43.
Qxb7+ {[%clk 0:00:33.3]} 43... Kg6 {[%clk 0:00:05.3]} 44. Qxc6 {[%clk
0:00:33.3]} 44... Rf2 {[%clk 0:00:05.4]} 45. b5 {[%clk 0:00:33.3]} 45... Rf1
{[%clk 0:00:04.8]} 46. b6 {[%clk 0:00:32.4]} 46... Rb1+ {[%clk 0:00:04.9]} 47.
Kc2 {[%clk 0:00:32.4]} 47... Rf1 {[%clk 0:00:04.4]} 48. b7 {[%clk 0:00:32.3]}
48... Rf2+ {[%clk 0:00:04.6]} 49. Kb3 {[%clk 0:00:32.8]} 49... Rf1 {[%clk
0:00:04]} 50. Qe4+ {[%clk 0:00:31.1]} 50... Kg7 {[%clk 0:00:03.2]} 51. b8=Q
{[%clk 0:00:32]} 1-0

[Event "*** Titled Tuesday Blitz"]
[Site "Chess.com"]
[Date "2020.04.07"]
[Round "1"]
[White "ethylalcohol"]
[Black "StoreySniper"]
[Result "0-1"]
[WhiteElo "2116"]
[BlackElo "2527"]
[TimeControl "180+1"]
[EndTime "13:08:07 PDT"]
[Termination "StoreySniper won by checkmate"]

1. d4 {[%clk 0:03:00.6]} 1... g6 {[%clk 0:02:49.8]} 2. Nf3 {[%clk 0:03:00.7]}
2... Bg7 {[%clk 0:02:49.8]} 3. e4 {[%clk 0:02:59.9]} 3... c5 {[%clk 0:02:48.2]}
4. Be3 {[%clk 0:02:59]} 4... Nf6 {[%clk 0:02:42.7]} 5. Nc3 {[%clk 0:02:58.4]}
5... Qa5 {[%clk 0:02:40.7]} 6. Qd2 {[%clk 0:02:55.3]} 6... Nc6 {[%clk
0:02:28.4]} 7. O-O-O {[%clk 0:02:19.2]} 7... Ng4 {[%clk 0:01:43]} 8. Kb1 {[%clk
0:01:46.6]} 8... Nxe3 {[%clk 0:01:40.8]} 9. fxe3 {[%clk 0:01:46.8]} 9... d6
{[%clk 0:01:32.7]} 10. Bc4 {[%clk 0:01:41.8]} 10... O-O {[%clk 0:01:24]} 11.
Rhf1 {[%clk 0:01:41.1]} 11... Qb4 {[%clk 0:01:17]} 12. Qe2 {[%clk 0:01:27.2]}
12... Bg4 {[%clk 0:01:07.5]} 13. h3 {[%clk 0:01:25.1]} 13... Bxf3 {[%clk
0:01:07.2]} 14. Rxf3 {[%clk 0:01:21.6]} 14... cxd4 {[%clk 0:01:06.6]} 15. Nd5
{[%clk 0:01:17.5]} 15... d3 {[%clk 0:00:52.7]} 16. Nxb4 {[%clk 0:00:57.3]} 16...
dxe2 {[%clk 0:00:51.3]} 17. Bxe2 {[%clk 0:00:57.5]} 17... Nxb4 {[%clk
0:00:50.2]} 18. Bc4 {[%clk 0:00:58]} 18... Nc6 {[%clk 0:00:48.4]} 19. Rg3 {[%clk
0:00:45.3]} 19... Ne5 {[%clk 0:00:47.2]} 20. Bb3 {[%clk 0:00:45.7]} 20... b5
{[%clk 0:00:46.5]} 21. Rf1 {[%clk 0:00:44.4]} 21... a5 {[%clk 0:00:44.9]} 22. a4
{[%clk 0:00:43.7]} 22... bxa4 {[%clk 0:00:44.5]} 23. Bxa4 {[%clk 0:00:44.2]}
23... Rab8 {[%clk 0:00:44.7]} 24. Ka2 {[%clk 0:00:43.6]} 24... Rb4 {[%clk
0:00:39.6]} 25. Bb3 {[%clk 0:00:43.7]} 25... a4 {[%clk 0:00:30.9]} 26. Ka3
{[%clk 0:00:43.3]} 26... Rxe4 {[%clk 0:00:22.3]} 27. Bxa4 {[%clk 0:00:39.7]}
27... Ra8 {[%clk 0:00:21.5]} 28. b3 {[%clk 0:00:39.2]} 28... Nc4+ {[%clk
0:00:20.1]} 29. Ka2 {[%clk 0:00:30]} 29... Nd2 {[%clk 0:00:20.1]} 30. Rf4 {[%clk
0:00:25.3]} 30... Rxf4 {[%clk 0:00:19]} 31. exf4 {[%clk 0:00:25.2]} 31... Ne4
{[%clk 0:00:19.6]} 32. Re3 {[%clk 0:00:22.5]} 32... Nc3+ {[%clk 0:00:19.2]} 33.
Ka3 {[%clk 0:00:23.2]} 33... Nxa4 {[%clk 0:00:18.1]} 34. bxa4 {[%clk 0:00:23.7]}
34... Bd4 {[%clk 0:00:17.4]} 35. Rxe7 {[%clk 0:00:23.3]} 35... Bc5+ {[%clk
0:00:18]} 36. Kb3 {[%clk 0:00:22.6]} 36... Rb8+ {[%clk 0:00:17.4]} 37. Kc4
{[%clk 0:00:22]} 37... Rb4+ {[%clk 0:00:17.2]} 38. Kd5 {[%clk 0:00:22.8]} 38...
Rxa4 {[%clk 0:00:16.3]} 39. c4 {[%clk 0:00:22.4]} 39... Ra2 {[%clk 0:00:15.4]}
40. g4 {[%clk 0:00:22.4]} 40... Kg7 {[%clk 0:00:15.8]} 41. f5 {[%clk 0:00:22.2]}
41... Rd2+ {[%clk 0:00:16]} 42. Ke4 {[%clk 0:00:21.8]} 42... gxf5+ {[%clk
0:00:16.8]} 43. Kxf5 {[%clk 0:00:21.1]} 43... Rf2+ {[%clk 0:00:16.2]} 44. Kg5
{[%clk 0:00:20.2]} 44... h6+ {[%clk 0:00:14.2]} 45. Kh4 {[%clk 0:00:20.3]} 45...
Rf3 {[%clk 0:00:14.3]} 46. Rd7 {[%clk 0:00:18.5]} 46... Bf2+ {[%clk 0:00:14]}
47. Kh5 {[%clk 0:00:17.9]} 47... Rxh3# {[%clk 0:00:14]} 0-1